bitfinex/quotes_BTCUSD_20230113
["timestamp","ask_amount","ask_price","bid_price","bid_amount"]
[1673612263493,0.00083612,18922.0,18921.0,2.31805864]
[1673612265473,0.00083612,18922.0,18921.0,2.38613922]
[1673612265750,0.00083612,18922.0,18921.0,2.38437554]
[1673612265999,0.00083612,18922.0,18921.0,2.24517554]
[1673612266981,0.00083612,18922.0,18921.0,2.54517554]
[1673612268733,0.01828598,18925.0,18922.0,0.1]
[1673612268978,0.01828598,18925.0,18924.0,0.39569938]
[1673612269227,0.01828598,18925.0,18924.0,0.79569931]
[1673612269474,0.65820621,18926.0,18924.0,0.4]
[1673612269740,0.65820621,18926.0,18925.0,1.01224952]
[1673612269987,0.65820621,18926.0,18925.0,0.61655534]
[1673612270247,0.65820621,18926.0,18925.0,1.01224952]
[1673612270502,0.65820621,18926.0,18925.0,0.85397404]
[1673612270759,0.65820621,18926.0,18925.0,0.85498939]
[1673612272021,0.65820621,18926.0,18925.0,1.01324952]
[1673612272271,0.1385,18926.0,18925.0,1.01324952]
[1673612272524,0.1385,18926.0,18925.0,1.46070875]
[1673612272770,0.1385,18926.0,18925.0,1.45970875]
[1673612273765,0.1385,18926.0,18925.0,1.06401457]
[1673612274014,0.1385,18926.0,18925.0,1.32819457]
[1673612275537,0.1385,18926.0,18925.0,1.85442727]
[1673612275789,0.00661358,18927.0,18926.0,0.1]
[1673612276041,0.00661358,18927.0,18926.0,0.429167]
[1673612276287,0.00661358,18927.0,18926.0,0.79571971]
[1673612278246,0.00613793,18927.0,18926.0,0.79571971]
[1673612278496,0.00613793,18927.0,18926.0,0.4]
[1673612279020,0.00613793,18927.0,18926.0,0.79569388]
[1673612279265,0.00613793,18927.0,18926.0,0.4]
[1673612279783,0.00613793,18927.0,18926.0,0.98259828]
[1673612281271,0.00613793,18927.0,18926.0,1.31176528]
[1673612281764,0.12837793,18927.0,18925.0,0.47483926]
[1673612282019,0.12837793,18927.0,18926.0,0.15829151]
[1673612282020,1.0289756,18927.0,18926.0,0.15829151]
[1673612282269,1.0275756,18927.0,18926.0,0.15829151]
[1673612282518,0.9053356,18927.0,18926.0,0.15829151]
[1673612282764,0.7663356,18927.0,18926.0,0.39572108]
[1673612283006,0.7663356,18927.0,18926.0,0.39571486]
[1673612284495,0.7663356,18927.0,18926.0,0.15828529]
[1673612286537,0.7663356,18927.0,18926.0,0.39571486]
[1673612289213,0.7663356,18927.0,18926.0,0.39561392]
[1673612289705,0.7663356,18927.0,18926.0,0.15818435]
[1673612291236,0.14513793,18927.0,18926.0,0.15818435]
[1673612291491,0.14513793,18927.0,18924.0,0.001]
[1673612291492,0.58083417,18927.0,18924.0,0.001]
[1673612291743,0.2787,18925.0,18924.0,0.001]
[1673612292006,0.79368411,18925.0,18924.0,0.001]
[1673612292754,0.89368411,18925.0,18924.0,0.001]
[1673612293252,0.89368411,18925.0,18922.0,0.55400233]
[1673612293508,0.1397,18923.0,18922.0,0.55400233]
[1673612293774,0.1397,18923.0,18922.0,0.56250233]
[1673612294029,0.1397,18923.0,18922.0,0.96250233]
[1673612294530,0.1397,18923.0,18922.0,0.86250233]
[1673612294744,0.71131093,18923.0,18922.0,0.56250233]
[1673612295266,0.71131093,18923.0,18922.0,0.86250233]
[1673612296017,0.71131093,18923.0,18922.0,0.24592957]
[1673612296278,0.71131093,18923.0,18922.0,0.23742957]
[1673612296757,0.85101093,18923.0,18922.0,0.23742957]
[1673612296985,0.92337018,18923.0,18921.0,0.23842957]
[1673612297223,0.84178413,18922.0,18921.0,0.23842957]
[1673612297454,0.84178413,18922.0,18921.0,0.24592957]
[1673612297705,0.2787,18922.0,18921.0,0.54592957]
[1673612297956,0.21115925,18923.0,18921.0,1.21679082]
[1673612298187,0.21115925,18923.0,18921.0,1.45393947]
[1673612298691,0.21115925,18923.0,18921.0,1.13736671]
[1673612298950,0.75432385,18923.0,18921.0,1.13736671]
[1673612299194,0.75432385,18923.0,18922.0,0.15809347]
[1673612299434,0.6656858,18922.0,18921.0,0.15809347]
[1673612299688,1.0437858,18922.0,18920.0,0.16641289]
[1673612299923,0.74528755,18921.0,18920.0,0.00831942]
[1673612300181,0.74528755,18921.0,18920.0,0.01681942]
[1673612300968,0.74528755,18921.0,18920.0,0.00831942]
[1673612301450,0.74528755,18921.0,18920.0,0.00731942]
[1673612303659,0.1395,18921.0,18920.0,0.87065618]
[1673612303910,0.1393,18922.0,18920.0,1.11844471]
[1673612304422,0.139,18921.0,18920.0,0.00731942]
[1673612304662,0.239,18921.0,18920.0,0.00731942]
[1673612304917,0.3782,18921.0,18920.0,0.00731942]
[1673612305167,0.93209413,18921.0,18920.0,0.00731942]
[1673612308591,0.83209413,18921.0,18920.0,0.00731942]
[1673612308834,0.69309413,18921.0,18920.0,0.00731942]
[1673612309593,0.55389413,18921.0,18920.0,0.00731942]
[1673612311549,0.17235925,18923.0,18920.0,0.59029924]
[1673612311550,0.85857226,18923.0,18920.0,0.59029924]
[1673612311787,0.75857226,18923.0,18920.0,0.80060418]
[1673612312038,0.75857226,18923.0,18920.0,0.59029924]
[1673612312292,0.67583058,18922.0,18920.0,0.00731942]
[1673612312539,0.1,18921.0,18920.0,0.00731942]
[1673612313293,0.77583058,18922.0,18920.0,0.00731942]
[1673612313769,0.64531808,18921.0,18920.0,0.00731942]
[1673612316928,0.64531808,18921.0,18920.0,0.30731942]
[1673612317279,0.16545925,18923.0,18920.0,0.30731942]
[1673612317470,0.07235925,18923.0,18920.0,1.01724056]
[1673612317756,0.07235925,18923.0,18920.0,0.91286648]
[1673612317998,0.07235925,18923.0,18921.0,0.101]
[1673612318251,0.07235925,18923.0,18922.0,0.329167]
[1673612318505,0.07235925,18923.0,18922.0,0.93947194]
[1673612318741,0.07235925,18923.0,18922.0,2.30896903]
[1673612319001,0.07235925,18923.0,18922.0,1.66322927]
[1673612319256,0.07235925,18923.0,18922.0,1.82116409]
[1673612319501,0.07235925,18923.0,18922.0,2.15883109]
[1673612319745,0.07235925,18923.0,18922.0,1.64790841]
[1673612320254,0.07235925,18923.0,18922.0,2.33269055]
[1673612320715,0.07235925,18923.0,18922.0,2.01611779]
[1673612321741,0.07235925,18923.0,18922.0,2.33196282]
[1673612322246,0.07235925,18923.0,18922.0,2.01611779]
[1673612322453,0.06512333,18923.0,18922.0,2.01611779]
[1673612322992,0.06512333,18923.0,18922.0,2.33196389]
[1673612323204,0.06512333,18923.0,18922.0,2.01611779]
[1673612326637,0.06512333,18923.0,18922.0,2.1388876]
[1673612326876,0.06512333,18923.0,18922.0,2.79902686]
[1673612328892,0.06512333,18923.0,18922.0,2.28055896]
[1673612329400,0.06512333,18923.0,18922.0,1.8057197]
[1673612330412,0.06512333,18923.0,18922.0,1.8057097]
[1673612331925,0.06512333,18923.0,18922.0,2.79901686]
[1673612333668,0.06512333,18923.0,18922.0,2.3241776]
[1673612333931,0.06512333,18923.0,18922.0,2.79901686]
[1673612335371,0.058611,18923.0,18922.0,2.79901686]
[1673612335615,0.058611,18923.0,18922.0,2.3241776]
[1673612337193,0.058611,18923.0,18922.0,1.8057097]
[1673612339386,0.058611,18923.0,18922.0,2.3241776]
[1673612340131,0.058611,18923.0,18922.0,2.2319776]
[1673612340375,0.058611,18923.0,18922.0,1.7135097]
[1673612340622,0.058611,18923.0,18922.0,2.53816399]
[1673612340866,0.058611,18923.0,18922.0,2.01545755]
[1673612343774,0.058611,18923.0,18922.0,2.01546755]
[1673612345020,0.058611,18923.0,18922.0,1.6212197]
[1673612346266,0.058611,18923.0,18922.0,1.8063197]
[1673612348290,0.0527499,18923.0,18922.0,1.8063197]
[1673612350069,0.0527499,18923.0,18922.0,1.6667197]
[1673612350569,0.0527499,18923.0,18922.0,2.28115896]
[1673612350832,0.0527499,18923.0,18922.0,2.79962686]
[1673612351325,0.0527499,18923.0,18922.0,2.28115896]
[1673612352821,0.0527499,18923.0,18922.0,2.01693896]
[1673612353068,0.0527499,18923.0,18922.0,2.28112896]
[1673612353566,0.0527499,18923.0,18922.0,1.8062897]
[1673612355803,0.04184785,18923.0,18922.0,2.6409576]
[1673612356051,0.04184785,18923.0,18922.0,2.7805576]
[1673612356298,0.04184785,18923.0,18922.0,3.48083486]
[1673612356543,0.04184785,18923.0,18922.0,2.7805576]
[1673612359822,0.04184785,18923.0,18922.0,3.6194576]
[1673612360073,0.04184785,18923.0,18922.0,3.73557029]
[1673612360316,0.04184785,18923.0,18922.0,3.6194576]
[1673612360563,0.04184785,18923.0,18922.0,3.77107584]
[1673612360834,6e-05,18926.0,18923.0,0.4162]
[1673612361071,6e-05,18926.0,18925.0,1.24323305]
[1673612361315,6e-05,18926.0,18925.0,2.91493221]
[1673612362097,6e-05,18926.0,18925.0,3.37923221]
[1673612362351,0.01117078,18928.0,18925.0,3.37923221]
[1673612362610,0.01117078,18928.0,18927.0,0.7533378]
[1673612362921,0.01117078,18928.0,18927.0,2.05909916]
[1673612363362,0.01117078,18928.0,18927.0,1.4031997]
[1673612364120,0.01117078,18928.0,18927.0,1.87744057]
[1673612364366,0.01117078,18928.0,18927.0,2.39374003]
[1673612364867,0.01117078,18928.0,18927.0,1.87744095]
[1673612365114,0.01117078,18928.0,18927.0,2.39374041]
[1673612365361,0.01117078,18928.0,18927.0,1.91949916]
[1673612365854,0.01117078,18928.0,18927.0,2.39360064]
[1673612367837,0.01117078,18928.0,18927.0,2.37509916]
[1673612368844,0.01117078,18928.0,18927.0,2.37479916]
[1673612369606,0.01117078,18928.0,18927.0,2.64840059]
[1673612369860,0.01117078,18928.0,18927.0,2.05380059]
[1673612370122,0.01117078,18928.0,18927.0,1.57991261]
[1673612371123,0.01117078,18928.0,18927.0,1.43778768]
[1673612371627,0.01117078,18928.0,18927.0,1.91814094]
[1673612372114,0.01117078,18928.0,18927.0,1.2638997]
[1673612372359,0.01117078,18928.0,18927.0,1.73778768]
[1673612378054,0.01117078,18928.0,18927.0,2.40154916]
[1673612378275,0.01117078,18928.0,18927.0,1.73778768]
[1673612378787,0.01117078,18928.0,18927.0,1.86926127]
[1673612379037,0.01117078,18928.0,18927.0,2.34314925]
[1673612379558,0.01117078,18928.0,18927.0,1.86926127]
[1673612379798,0.01117078,18928.0,18927.0,1.87644115]
[1673612380037,0.01117078,18928.0,18927.0,2.35032913]
[1673612380555,0.01117078,18928.0,18927.0,1.87644115]
[1673612383520,0.01117078,18928.0,18927.0,1.77644115]
[1673612383758,0.01117078,18928.0,18927.0,1.84210984]
[1673612384013,0.01117078,18928.0,18927.0,1.84310984]
[1673612384781,0.01103078,18928.0,18927.0,1.84310984]
[1673612386010,0.01103078,18928.0,18927.0,1.84210984]
[1673612386504,0.13046876,18929.0,18928.0,0.79440847]
[1673612386758,0.13046876,18929.0,18928.0,2.07365856]
[1673612387252,0.13046876,18929.0,18928.0,1.84515111]
[1673612387498,0.13046876,18929.0,18928.0,2.2399868]
[1673612388204,0.13046876,18929.0,18928.0,2.2409868]
[1673612389934,0.13046876,18929.0,18928.0,1.7147541]
[1673612391370,0.13046876,18929.0,18928.0,1.39874416]
[1673612391620,0.13046876,18929.0,18928.0,1.49874416]
[1673612391872,0.13046876,18929.0,18928.0,1.10390847]
[1673612392361,0.13046876,18929.0,18928.0,1.10290847]
[1673612392604,0.13046876,18929.0,18928.0,1.00290847]
[1673612393341,0.13046876,18929.0,18928.0,1.10290847]
[1673612393824,0.13046876,18929.0,18928.0,1.00290847]
[1673612394049,0.13046876,18929.0,18928.0,1.47679645]
[1673612394557,0.13046876,18929.0,18928.0,1.40862068]
[1673612394803,0.0001,18930.0,18928.0,1.73778768]
[1673612395041,0.0001,18930.0,18929.0,0.729167]
[1673612395837,0.0001,18930.0,18929.0,1.08165798]
[1673612396077,0.0001,18930.0,18929.0,1.55554596]
[1673612396321,0.0001,18930.0,18929.0,1.08165798]
[1673612397078,0.0001,18930.0,18929.0,1.41082498]
[1673612397325,0.0001,18930.0,18929.0,1.08165798]
[1673612397564,0.0001,18930.0,18929.0,1.09015798]
[1673612398310,0.0001,18930.0,18929.0,0.4085]
[1673612398560,0.0001,18930.0,18929.0,1.40862068]
[1673612398805,0.0001,18930.0,18929.0,1.73778768]
[1673612399556,0.0001,18930.0,18929.0,1.96314903]
[1673612400332,0.0001,18930.0,18929.0,1.73778768]
[1673612400594,0.0001,18930.0,18929.0,1.91679767]
[1673612401611,0.0001,18930.0,18929.0,1.40862068]
[1673612401857,0.19871739,18932.0,18930.0,0.6776422]
[1673612402124,0.19871739,18932.0,18931.0,0.71220237]
[1673612402361,0.19871739,18932.0,18931.0,1.12070237]
[1673612402618,0.1502483,18932.0,18931.0,1.12070237]
[1673612404323,0.1502483,18932.0,18931.0,1.02070237]
[1673612405069,0.1502483,18932.0,18931.0,0.62503439]
[1673612405331,0.1502483,18932.0,18931.0,0.86243096]
[1673612405332,0.76209563,18932.0,18931.0,0.86243096]
[1673612405581,0.76209563,18932.0,18931.0,0.56243096]
[1673612405826,0.76209563,18932.0,18931.0,0.86243096]
[1673612407318,0.76209563,18932.0,18931.0,0.54589657]
[1673612407560,0.76209563,18932.0,18931.0,0.40416908]
[1673612408637,0.76209563,18932.0,18931.0,0.16677251]
[1673612409131,0.76209563,18932.0,18931.0,0.15827251]
[1673612409872,0.90169563,18932.0,18931.0,0.15827251]
[1673612410122,0.90169563,18932.0,18930.0,0.39566908]
[1673612410364,0.2396,18931.0,18930.0,0.39566908]
[1673612410869,0.2396,18931.0,18929.0,0.39566908]
[1673612410870,0.5174,18931.0,18929.0,0.39566908]
[1673612411125,0.4181,18930.0,18928.0,0.39566908]
[1673612411369,0.79541631,18929.0,18928.0,0.39566908]
[1673612411617,0.93441631,18929.0,18927.0,0.39570562]
[1673612411863,0.5184,18928.0,18927.0,0.39570562]
[1673612412110,0.4184,18928.0,18927.0,0.39570562]
[1673612412356,0.4184,18928.0,18927.0,0.15830905]
[1673612412852,0.4184,18928.0,18927.0,0.39570562]
[1673612413598,0.4184,18928.0,18927.0,0.15830905]
[1673612414338,1.08252472,18928.0,18927.0,0.15830905]
[1673612414591,1.86759622,18928.0,18926.0,0.001]
[1673612414846,0.4162,18927.0,18925.0,0.15830905]
[1673612415104,0.51260414,18927.0,18926.0,0.001]
[1673612415363,0.5181,18927.0,18924.0,0.39108426]
[1673612415599,0.2778,18925.0,18924.0,0.39108426]
[1673612415836,0.2778,18925.0,18924.0,0.15368769]
[1673612417108,0.2778,18925.0,18923.0,1.07895746]
[1673612417354,0.2783,18924.0,18923.0,1.39549185]
[1673612417598,0.2783,18924.0,18923.0,0.78745746]
[1673612417838,0.2783,18924.0,18923.0,0.85006089]
[1673612418104,0.2783,18924.0,18923.0,0.55006089]
[1673612419103,0.2783,18924.0,18923.0,0.85006089]
[1673612419360,0.2783,18924.0,18923.0,1.18745746]
[1673612420099,0.2783,18924.0,18923.0,1.17895746]
[1673612420853,0.2783,18924.0,18923.0,0.85472137]
[1673612421104,0.18903253,18927.0,18923.0,1.65586745]
[1673612421352,0.18903253,18927.0,18926.0,0.26223234]
[1673612421608,0.18903253,18927.0,18925.0,0.501006]
[1673612421858,0.13966,18927.0,18926.0,0.3]
[1673612422102,0.13966,18927.0,18926.0,0.87421205]
[1673612422348,0.13966,18927.0,18926.0,0.97421205]
[1673612422851,0.1396,18927.0,18926.0,0.97421205]
[1673612423850,0.1396,18927.0,18926.0,0.87421205]
[1673612424095,0.1396,18927.0,18926.0,0.97421205]
[1673612425356,0.1396,18927.0,18926.0,1.03206265]
[1673612425615,0.1396,18927.0,18926.0,1.13206265]
[1673612425864,0.1396,18927.0,18926.0,0.97421205]
[1673612426358,0.1396,18927.0,18926.0,0.87421205]
[1673612426856,0.0931,18927.0,18926.0,0.87421205]
[1673612427358,0.0931,18927.0,18925.0,0.1578506]
[1673612427628,0.61568929,18927.0,18924.0,1.01570088]
[1673612427873,0.093,18926.0,18924.0,0.77889488]
[1673612428884,0.093,18926.0,18925.0,0.50852895]
[1673612429133,0.093,18926.0,18924.0,0.1578506]
[1673612429385,0.093,18926.0,18923.0,1.3264471]
[1673612429386,0.0926,18925.0,18923.0,1.8476666]
[1673612429631,0.0926,18925.0,18924.0,0.69380883]
[1673612429885,0.0926,18925.0,18923.0,0.93175037]
[1673612430388,0.7062396,18924.0,18923.0,0.16265037]
[1673612430634,0.7062396,18924.0,18923.0,0.00479977]
[1673612431100,0.7062396,18924.0,18923.0,0.10479977]
[1673612431599,0.7062396,18924.0,18923.0,0.00479977]
[1673612431842,0.7062396,18924.0,18923.0,0.30479977]
[1673612432596,0.7062396,18924.0,18923.0,0.00479977]
[1673612433866,0.0926,18925.0,18923.0,0.98616366]
[1673612434605,0.65607321,18925.0,18923.0,0.98616366]
[1673612435601,0.65607321,18925.0,18924.0,0.62248921]
[1673612435838,0.65607321,18925.0,18924.0,1.02248921]
[1673612436075,0.65607321,18925.0,18924.0,0.92248921]
[1673612437051,0.65607321,18925.0,18924.0,1.02248921]
[1673612437300,0.65607321,18925.0,18924.0,0.92248921]
[1673612438786,0.0926,18925.0,18924.0,0.92248921]
[1673612441531,0.52837676,18926.0,18924.0,0.92248921]
[1673612443534,0.5282971,18926.0,18924.0,0.92248921]
[1673612445554,0.5282971,18926.0,18924.0,0.3]
[1673612446855,0.11445966,18926.0,18924.0,0.3]
[1673612447141,0.0926,18925.0,18924.0,0.3]
[1673612447451,0.1926,18925.0,18924.0,0.3]
[1673612447715,0.70889946,18925.0,18924.0,0.3]
[1673612447969,1.21090039,18925.0,18924.0,0.3]
[1673612448999,1.37841602,18925.0,18924.0,0.3]
[1673612449250,2.86791509,18925.0,18924.0,0.3]
[1673612449503,2.86791509,18925.0,18924.0,1e-08]
[1673612449504,3.02461133,18925.0,18924.0,1e-08]
[1673612449750,2.86791509,18925.0,18924.0,1e-08]
[1673612450028,3.63803981,18925.0,18924.0,1e-08]
[1673612450995,3.31382794,18925.0,18924.0,1e-08]
[1673612451240,3.31382794,18925.0,18923.0,0.00479977]
[1673612451494,0.80161692,18924.0,18923.0,0.00479977]
[1673612451992,0.2849,18924.0,18923.0,0.00479977]
[1673612453012,2.70482848,18925.0,18923.0,0.00479977]
[1673612453261,0.65173888,18924.0,18923.0,0.00479977]
[1673612454262,0.1,18924.0,18923.0,0.00479977]
[1673612454509,0.73845157,18924.0,18923.0,0.00479977]
[1673612454755,0.61671692,18924.0,18923.0,0.00479977]
[1673612455010,1.18022282,18924.0,18923.0,0.00479977]
[1673612455990,0.1,18924.0,18923.0,0.00479977]
[1673612456239,0.76912684,18924.0,18923.0,0.00479977]
[1673612456984,0.1,18924.0,18923.0,0.00479977]
[1673612457488,0.6069553,18924.0,18923.0,0.00479977]
[1673612457743,0.1,18924.0,18923.0,0.00479977]
[1673612457990,0.2862,18924.0,18923.0,0.00479977]
[1673612458228,0.80291692,18924.0,18923.0,0.00479977]
[1673612458471,0.2862,18924.0,18923.0,0.00479977]
[1673612458945,0.79226305,18924.0,18923.0,0.00479977]
[1673612459418,1.38155638,18924.0,18923.0,0.00479977]
[1673612461414,0.86483946,18924.0,18923.0,0.00479977]
[1673612461649,0.285478,18924.0,18923.0,0.00479977]
[1673612461887,0.98257085,18924.0,18923.0,0.00479977]
[1673612464100,0.95623303,18924.0,18923.0,0.00479977]
[1673612465307,0.285478,18924.0,18923.0,0.00479977]
[1673612465569,0.91865244,18924.0,18923.0,0.00479977]
[1673612468082,0.81937444,18924.0,18923.0,0.00479977]
[1673612468592,0.91937444,18924.0,18923.0,0.00479977]
[1673612470546,1.22046188,18924.0,18923.0,0.00479977]
[1673612471574,1.03426188,18924.0,18923.0,0.00479977]
[1673612471830,0.40108744,18924.0,18923.0,0.00479977]
[1673612472073,0.46756338,18924.0,18923.0,0.00479977]
[1673612472328,0.98979238,18924.0,18923.0,0.00479977]
[1673612473346,0.68319286,18924.0,18923.0,0.00479977]
[1673612474091,0.16647594,18924.0,18923.0,0.00479977]
[1673612474570,1.26472429,18924.0,18923.0,0.00479977]
[1673612474812,0.67866522,18924.0,18923.0,0.00479977]
[1673612475580,0.67866522,18924.0,18923.0,0.21510471]
[1673612475581,0.57866522,18924.0,18923.0,0.21510471]
[1673612475830,0.57866522,18924.0,18923.0,0.00479977]
[1673612478084,0.06647594,18924.0,18923.0,0.00479977]
[1673612478332,0.06647594,18924.0,18923.0,0.71477434]
[1673612483980,0.06647594,18924.0,18923.0,0.87262494]
[1673612484198,0.06647594,18924.0,18923.0,0.71477434]
[1673612485465,0.16647594,18924.0,18923.0,0.00479977]
[1673612486189,0.687039,18924.0,18923.0,0.00479977]
[1673612487760,0.587039,18924.0,18923.0,0.00479977]
[1673612489260,0.6557429,18924.0,18923.0,0.00479977]
[1673612489519,0.39187608,18924.0,18923.0,0.00479977]
[1673612489793,0.62597839,18924.0,18923.0,0.00479977]
[1673612490107,1.80893059,18924.0,18923.0,0.00479977]
[1673612490304,1.14269531,18924.0,18923.0,0.00479977]
[1673612491037,3.67387468,18924.0,18923.0,0.00479977]
[1673612491285,3.07399141,18924.0,18923.0,0.00479977]
[1673612491774,3.74196187,18924.0,18923.0,0.00479977]
[1673612492783,3.74696187,18924.0,18923.0,0.06279977]
[1673612493039,3.07899141,18924.0,18923.0,0.06279977]
[1673612493298,3.08790311,18924.0,18923.0,0.06279977]
[1673612493543,3.40145537,18924.0,18923.0,0.06279977]
[1673612493794,3.08790311,18924.0,18923.0,0.06279977]
[1673612494037,0.1,18923.0,18921.0,0.00725564]
[1673612494288,1.78971864,18923.0,18921.0,0.00725564]
[1673612494529,1.45516309,18923.0,18921.0,0.00725564]
[1673612494773,1.9915,18922.0,18921.0,0.00725564]
[1673612495741,2.56451633,18922.0,18921.0,0.00725564]
[1673612496019,2.56451633,18922.0,18921.0,0.00503991]
[1673612496280,2.84796796,18922.0,18921.0,0.00503991]
[1673612496770,2.58151633,18922.0,18921.0,0.00503991]
[1673612501044,2.0085,18922.0,18921.0,0.00503991]
[1673612501286,2.9594707,18922.0,18921.0,0.00503991]
[1673612501760,3.19357301,18922.0,18921.0,0.00503991]
[1673612502000,2.9594707,18922.0,18921.0,0.00503991]
[1673612502259,3.32018323,18922.0,18921.0,0.00503991]
[1673612502493,3.30318323,18922.0,18921.0,0.00503991]
[1673612502744,3.35318323,18922.0,18921.0,0.01003991]
[1673612503485,3.58728554,18922.0,18921.0,0.01003991]
[1673612503960,3.67698554,18922.0,18921.0,0.00503991]
[1673612504209,3.81298554,18922.0,18921.0,0.00903991]
[1673612504442,3.83288544,18922.0,18921.0,0.00503991]
[1673612504680,3.96888544,18922.0,18921.0,0.00903991]
[1673612505701,3.65533318,18922.0,18921.0,0.00903991]
[1673612505953,3.96888544,18922.0,18921.0,0.00903991]
[1673612506195,3.81272737,18922.0,18921.0,0.00903991]
[1673612507769,3.8126627,18922.0,18921.0,0.00903991]
[1673612508528,5.8126627,18922.0,18921.0,0.00903991]
[1673612510440,5.96888544,18922.0,18921.0,0.00903991]
[1673612510705,5.45191493,18922.0,18921.0,0.00903991]
[1673612510939,5.07811307,18922.0,18921.0,0.00903991]
[1673612511910,4.92081834,18922.0,18921.0,0.00903991]
[1673612512158,5.07811307,18922.0,18921.0,0.00903991]
[1673612512394,4.92081834,18922.0,18921.0,0.00903991]
[1673612512925,5.07811307,18922.0,18921.0,0.00903991]
[1673612513680,5.7686317,18922.0,18921.0,0.00903991]
[1673612513914,5.53452939,18922.0,18921.0,0.00903991]
[1673612514223,5.7686317,18922.0,18921.0,0.00903991]
[1673612517065,5.31221538,18922.0,18921.0,0.00903991]
[1673612517302,5.07811307,18922.0,18921.0,0.00903991]
[1673612519774,5.31221538,18922.0,18921.0,0.00903991]
[1673612520507,5.07811307,18922.0,18921.0,0.00903991]
[1673612520987,5.31221538,18922.0,18921.0,0.00893759]
[1673612521261,5.38044296,18922.0,18921.0,0.00893759]
[1673612522221,5.22314823,18922.0,18921.0,0.00893759]
[1673612522472,5.53670049,18922.0,18921.0,0.00893759]
[1673612522942,5.30259818,18922.0,18921.0,0.00893759]
[1673612523457,5.83867598,18922.0,18921.0,0.00893759]
[1673612523694,5.53867598,18922.0,18921.0,0.00893759]
[1673612523948,5.53867598,18922.0,18920.0,1e-08]
[1673612523949,0.1,18921.0,18920.0,1e-08]
[1673612524180,1.67062288,18921.0,18920.0,1e-08]
[1673612524707,1.14728187,18921.0,18920.0,1e-08]
[1673612525183,1.28328187,18921.0,18920.0,0.00400001]
[1673612526388,0.1,18920.0,18917.0,0.00513822]
[1673612526633,0.61471834,18920.0,18917.0,0.00513822]
[1673612526867,0.75304653,18920.0,18917.0,0.00513822]
[1673612527104,1.9915,18918.0,18917.0,0.00513822]
[1673612527486,2.67248289,18918.0,18917.0,0.03013822]
[1673612527723,2.67248289,18918.0,18917.0,0.00513822]
[1673612528206,2.67748289,18918.0,18917.0,0.03013822]
[1673612531680,2.67748289,18918.0,18917.0,0.16943822]
[1673612532635,2.94523118,18918.0,18917.0,0.16943822]
[1673612534350,2.67748289,18918.0,18917.0,0.16943822]
[1673612536596,2.67748289,18918.0,18917.0,0.03013822]
[1673612537868,3.49773413,18918.0,18917.0,0.03013822]
[1673612538139,5.53618416,18918.0,18917.0,0.03013822]
[1673612538383,5.44403579,18918.0,18917.0,0.03013822]
[1673612538625,5.9673768,18918.0,18917.0,0.03013822]
[1673612538875,0.03365385,18916.0,18915.0,0.00859457]
[1673612539120,1.10042766,18916.0,18915.0,0.00859457]
[1673612539374,1.23932766,18916.0,18915.0,0.00859457]
[1673612539623,3.00273246,18916.0,18915.0,0.00859457]
[1673612539871,3.98336903,18916.0,18915.0,0.00859457]
[1673612540115,5.67683333,18916.0,18915.0,0.00859457]
[1673612540365,4.54598804,18916.0,18915.0,0.00859457]
[1673612540612,3.72493738,18916.0,18915.0,0.00859457]
[1673612541344,3.3752316,18916.0,18915.0,0.00859457]
[1673612541588,3.68753847,18916.0,18915.0,0.00859457]
[1673612541850,2.46622805,18916.0,18915.0,0.00859457]
[1673612542103,2.98094639,18916.0,18915.0,0.00859457]
[1673612543088,2.82327219,18916.0,18915.0,0.00859457]
[1673612543347,2.98094639,18916.0,18915.0,0.00859457]
[1673612545083,3.42627961,18916.0,18915.0,0.00859457]
[1673612545333,2.82327219,18916.0,18915.0,0.00859457]
[1673612545814,3.32234301,18916.0,18915.0,0.00859457]
[1673612546059,2.82327219,18916.0,18915.0,0.00859457]
[1673612546309,2.98094639,18916.0,18915.0,0.00859457]
[1673612546560,3.31269094,18916.0,18915.0,0.00859457]
[1673612546814,4.40077615,18916.0,18915.0,0.00859457]
[1673612547066,6.33413839,18916.0,18915.0,0.00859457]
[1673612547324,6.64927124,18916.0,18915.0,0.00859457]
[1673612547576,6.33414414,18916.0,18915.0,0.00859457]
[1673612547820,6.64929704,18916.0,18915.0,0.00859457]
[1673612548062,6.64929877,18916.0,18915.0,0.00859457]
[1673612548280,5.59150922,18916.0,18915.0,0.00859457]
[1673612548827,5.29150922,18916.0,18915.0,0.00859457]
[1673612549318,5.59150922,18916.0,18915.0,0.00859457]
[1673612549807,6.64916331,18916.0,18915.0,0.00859457]
[1673612550063,5.59150922,18916.0,18915.0,0.00859457]
[1673612550562,4.70000904,18916.0,18915.0,0.00859457]
[1673612550810,4.70000628,18916.0,18915.0,0.00859457]
[1673612551064,4.16380818,18916.0,18915.0,0.00859457]
[1673612551308,3.07256773,18916.0,18915.0,0.00859457]
[1673612551561,2.67888046,18916.0,18915.0,0.00859457]
[1673612554051,0.67888046,18916.0,18915.0,0.00859457]
[1673612558394,0.16965385,18916.0,18915.0,0.00859457]
[1673612558669,0.7882787,18916.0,18915.0,1e-08]
[1673612560372,0.94579939,18916.0,18915.0,1e-08]
[1673612560610,1.60021773,18916.0,18915.0,1e-08]
[1673612561354,1.58535888,18916.0,18915.0,1e-08]
[1673612561612,1.60572901,18916.0,18915.0,1e-08]
[1673612561859,1.51262901,18916.0,18915.0,1e-08]
[1673612562104,4.06672901,18916.0,18915.0,1e-08]
[1673612563582,5.19477197,18916.0,18915.0,1e-08]
[1673612563852,4.46105435,18916.0,18915.0,1e-08]
[1673612564101,5.93753174,18916.0,18914.0,0.00725943]
[1673612564345,2.22336541,18915.0,18914.0,0.00725943]
[1673612564604,3.44475054,18915.0,18914.0,0.00725943]
[1673612564847,2.31646541,18915.0,18914.0,0.00725943]
[1673612565104,2.31646541,18915.0,18914.0,0.00711426]
[1673612565356,3.44475001,18915.0,18914.0,0.00711426]
[1673612565602,2.31766541,18915.0,18914.0,0.00711426]
[1673612565862,2.45366541,18915.0,18914.0,0.00711426]
[1673612566858,1.45665663,18915.0,18914.0,0.00711426]
[1673612567106,1.55665663,18915.0,18914.0,0.00711426]
[1673612567594,1.55565663,18915.0,18914.0,0.00711426]
[1673612568532,1.39801834,18915.0,18914.0,0.00711426]
[1673612568770,1.71325997,18915.0,18914.0,0.00711426]
[1673612569019,1.97913859,18915.0,18914.0,0.00711426]
[1673612569265,2.21569859,18915.0,18914.0,0.00711426]
[1673612569765,2.37322389,18915.0,18914.0,0.00711426]
[1673612570233,2.67322389,18915.0,18914.0,0.00711426]
[1673612570472,3.5651495,18915.0,18914.0,0.00711426]
[1673612571435,4.30760173,18915.0,18914.0,0.00711426]
[1673612571685,4.30860173,18915.0,18914.0,0.00711426]
[1673612572938,3.91427639,18915.0,18914.0,0.00711426]
[1673612573673,3.91327639,18915.0,18914.0,0.00711426]
[1673612573928,3.91427639,18915.0,18914.0,0.00711426]
[1673612574172,4.56925267,18915.0,18914.0,0.00711426]